fUSD/lending_fUSD_20260625
["ID","MTS","AMOUNT","RATE_DAILY","PERIOD"]
[426379478,1782336698000,-800.97385896,0.00026622,2]
[426379467,1782336698000,-760.68,0.000265,7]
[426379469,1782336698000,-232.87883147,0.00026503,2]
[426379470,1782336698000,-493.30727032,0.00026506,2]
[426379471,1782336698000,-483.85584691,0.00026521,2]
[426379473,1782336698000,-186.65627525,0.00026622,2]
[426379472,1782336698000,-1784.89,0.00026575,2]
[426379474,1782336698000,-667.49277201,0.00026622,2]
[426379502,1782336698000,-327.71988892,0.00026713,2]
[426379475,1782336698000,-651.26305773,0.00026622,2]
[426379476,1782336698000,-630.57034763,0.00026622,2]
[426379481,1782336698000,-326.15215335,0.00026622,2]
[426379479,1782336698000,-626.92854139,0.00026622,2]
[426379480,1782336698000,-540.62848547,0.00026622,2]
[426379483,1782336698000,-876.88723508,0.00026622,2]
[426379486,1782336698000,-530.76775509,0.00026622,2]
[426379482,1782336698000,-167.12460414,0.00026622,2]
[426379490,1782336698000,-27859.01517237,0.00026667,2]
[426379485,1782336698000,-493.47799611,0.00026622,2]
[426379489,1782336698000,-675.48960852,0.00026622,2]
[426379488,1782336698000,-436.87738503,0.00026622,2]
[426379484,1782336698000,-517.45833086,0.00026622,2]
[426379487,1782336698000,-332.77029979,0.00026622,2]
[426379477,1782336698000,-641.43350231,0.00026622,2]
[426379521,1782336698000,-178.93360286,0.00026713,2]
[426379466,1782336698000,-347.67978861,0.00026495,2]
[426379522,1782336698000,-413.50249621,0.00026713,2]
[426379559,1782336698000,-791.87274914,0.00026713,2]
[426379557,1782336698000,-727.52758278,0.00026713,2]
[426379563,1782336698000,-164.20142358,0.00026713,2]
[426379560,1782336698000,-1425.49479511,0.00026713,2]
[426379564,1782336698000,-174.0130704,0.00026713,2]
[426379561,1782336698000,-301.96054261,0.00026713,2]
[426379562,1782336698000,-269.41910788,0.00026713,2]
[426379576,1782336698000,-160.25243297,0.00026713,2]
[426379566,1782336698000,-599.4674135,0.00026713,2]
[426379577,1782336698000,-160.60325267,0.00026713,2]
[426379565,1782336698000,-210.77948592,0.00026713,2]
[426379569,1782336698000,-260.79527792,0.00026713,2]
[426379567,1782336698000,-160.2572445,0.00026713,2]
[426379570,1782336698000,-164.93498669,0.00026713,2]
[426379573,1782336698000,-676.28542598,0.00026713,2]
[426379568,1782336698000,-160.25728499,0.00026713,2]
[426379571,1782336698000,-742.00023578,0.00026713,2]
[426379572,1782336698000,-199.93691547,0.00026713,2]
[426379575,1782336698000,-160.58243587,0.00026713,2]
[426379574,1782336698000,-528.29101683,0.00026713,2]
[426379580,1782336698000,-24309.46144522,0.00026715,7]
[426379578,1782336698000,-709.00462368,0.00026713,2]
[426379583,1782336698000,-360.28581458,0.00026718,2]
[426379579,1782336698000,-160.25404322,0.00026713,2]
[426379585,1782336698000,-628.06483019,0.00026718,2]
[426379584,1782336698000,-160.24609971,0.00026718,2]
[426379581,1782336698000,-162.77021371,0.00026718,2]
[426379558,1782336698000,-599.99426181,0.00026713,2]
[426379555,1782336698000,-594.21736921,0.00026713,2]
[426379582,1782336698000,-200.80929769,0.00026718,2]
[426379554,1782336698000,-458.16170624,0.00026713,2]
[426379556,1782336698000,-696.4095636,0.00026713,2]
[426379523,1782336698000,-437.39920725,0.00026713,2]
[426379525,1782336698000,-171.59676116,0.00026713,2]
[426379528,1782336698000,-726.19732956,0.00026713,2]
[426379531,1782336698000,-167.3151538,0.00026713,2]
[426379530,1782336698000,-160.24602226,0.00026713,2]
[426379529,1782336698000,-705.44400083,0.00026713,2]
[426379532,1782336698000,-666.96962058,0.00026713,2]
[426379535,1782336698000,-160.24449583,0.00026713,2]
[426379533,1782336698000,-161.11234091,0.00026713,2]
[426379534,1782336698000,-160.21831438,0.00026713,2]
[426379536,1782336698000,-160.24622272,0.00026713,2]
[426379540,1782336698000,-316.84626125,0.00026713,2]
[426379538,1782336698000,-630.76068683,0.00026713,2]
[426379524,1782336698000,-1355.3998169,0.00026713,2]
[426379539,1782336698000,-165.72871069,0.00026713,2]
[426379537,1782336698000,-644.38387821,0.00026713,2]
[426379552,1782336698000,-465.91071253,0.00026713,2]
[426379547,1782336698000,-661.27304844,0.00026713,2]
[426379548,1782336698000,-159.91703272,0.00026713,2]
[426379544,1782336698000,-643.33429577,0.00026713,2]
[426379549,1782336698000,-200.80789948,0.00026713,2]
[426379553,1782336698000,-539.13573942,0.00026713,2]
[426379543,1782336698000,-644.63311487,0.00026713,2]
[426379541,1782336698000,-200.32366278,0.00026713,2]
[426379551,1782336698000,-690.77544595,0.00026713,2]
[426379546,1782336698000,-695.32105853,0.00026713,2]
[426379542,1782336698000,-213.77024885,0.00026713,2]
[426379550,1782336698000,-664.8281925,0.00026713,2]
[426379545,1782336698000,-792.0195395,0.00026713,2]
[426379616,1782336699000,-646.88920173,0.00026718,2]
[426379626,1782336699000,-158.890575,0.000268,2]
[426379615,1782336699000,-1000.76843026,0.00026718,2]
[426379627,1782336699000,-151.0,0.000268,2]
[426379619,1782336699000,-562.3384583,0.00026718,2]
[426379618,1782336699000,-750.98859083,0.00026718,2]
[426379624,1782336699000,-151.0,0.000268,2]
[426379620,1782336699000,-500.0,0.00026767,2]
[426379621,1782336699000,-313.65409922,0.0002679,2]
[426379623,1782336699000,-151.0,0.000268,2]
[426379617,1782336699000,-836.31831059,0.00026718,2]
[426379631,1782336699000,-151.1068936,0.00026919,2]
[426379628,1782336699000,-27859.01517237,0.00026889,2]
[426379634,1782336699000,-204.92,0.00027,2]
[426379633,1782336699000,-167.88237955,0.00027,2]
[426379635,1782336699000,-847.34013965,0.00027048,2]
[426379630,1782336699000,-4200.0,0.000269,9]
[426379625,1782336699000,-151.0,0.000268,2]
[426379636,1782336699000,-927.8301709,0.0002705,2]
[426379632,1782336699000,-1354.3447004,0.00027,3]
[426379629,1782336699000,-278.8,0.000269,2]
[426379637,1782336699000,-894.42365897,0.0002705,2]
[426379642,1782336699000,-4345.0,0.00027125,10]
[426379638,1782336699000,-936.67584359,0.00027065,2]
[426379639,1782336699000,-152.0,0.00027108,4]
[426379622,1782336699000,-2972508.4465856,0.000268,2]
[426379613,1782336699000,-726.65483528,0.00026718,2]
[426379609,1782336699000,-161.15318451,0.00026718,2]
[426379611,1782336699000,-166.04279893,0.00026718,2]
[426379644,1782336699000,-834.36596501,0.00027186,2]
[426379590,1782336699000,-448.94894024,0.00026718,2]
[426379589,1782336699000,-160.25251509,0.00026718,2]
[426379586,1782336699000,-219.32394612,0.00026718,2]
[426379587,1782336699000,-654.97068994,0.00026718,2]
[426379588,1782336699000,-739.4756787,0.00026718,2]
[426379595,1782336699000,-705.27341871,0.00026718,2]
[426379594,1782336699000,-571.71242785,0.00026718,2]
[426379602,1782336699000,-160.25255929,0.00026718,2]
[426379591,1782336699000,-460.37906669,0.00026718,2]
[426379592,1782336699000,-646.59502384,0.00026718,2]
[426379593,1782336699000,-1431.97034989,0.00026718,2]
[426379596,1782336699000,-458.43215964,0.00026718,2]
[426379598,1782336699000,-695.52667218,0.00026718,2]
[426379600,1782336699000,-631.28333736,0.00026718,2]
[426379601,1782336699000,-425.47575922,0.00026718,2]
[426379597,1782336699000,-541.04206303,0.00026718,2]
[426379603,1782336699000,-160.25571806,0.00026718,2]
[426379604,1782336699000,-344.65628332,0.00026718,2]
[426379608,1782336699000,-866.65767113,0.00026718,2]
[426379607,1782336699000,-169.89118045,0.00026718,2]
[426379606,1782336699000,-463.26938214,0.00026718,2]
[426379605,1782336699000,-342.56202843,0.00026718,2]
[426379610,1782336699000,-214.23794882,0.00026718,2]
[426379614,1782336699000,-320.61786055,0.00026718,2]
[426379612,1782336699000,-1084.39511463,0.00026718,2]
[426379599,1782336699000,-586.56366918,0.00026718,2]
[426379647,1782336699000,-783.66067673,0.00027186,2]
[426379641,1782336699000,-20926.8171051,0.00027118,2]
[426379675,1782336699000,-1250.96053783,0.00027283,2]
[426379674,1782336699000,-1355.49389329,0.00027283,2]
[426379677,1782336699000,-808.61150216,0.00027283,2]
[426379678,1782336699000,-938.73573854,0.00027283,2]
[426379680,1782336699000,-27859.01517237,0.00027333,2]
[426379681,1782336699000,-1210.0,0.0002736,2]
[426379676,1782336699000,-1045.39788824,0.00027283,2]
[426379679,1782336699000,-500.0,0.00027288,2]
[426379683,1782336699000,-8296.31347125,0.0002739,2]
[426379689,1782336699000,-500.0,0.00027397,2]
[426379688,1782336699000,-170.51290129,0.00027397,7]
[426379686,1782336699000,-310.58710877,0.00027397,7]
[426379685,1782336699000,-1554.82,0.00027397,2]
[426379684,1782336699000,-5365.5,0.0002739,2]
[426379694,1782336699000,-251.018638,0.00027397,2]
[426379693,1782336699000,-151.0,0.00027397,2]
[426379690,1782336699000,-195.28534639,0.00027397,2]
[426379691,1782336699000,-1500.0,0.00027397,2]
[426379692,1782336699000,-151.42676043,0.00027397,10]
[426379696,1782336699000,-547.483996,0.00027397,2]
[426379698,1782336699000,-547.483996,0.00027397,2]
[426379695,1782336699000,-300.0,0.00027397,2]
[426379699,1782336699000,-547.483996,0.00027397,2]
[426379697,1782336699000,-547.483996,0.00027397,2]
[426379643,1782336699000,-200.0,0.00027137,2]
[426379671,1782336699000,-808.24377981,0.00027283,2]
[426379673,1782336699000,-1083.32208891,0.00027283,2]
[426379687,1782336699000,-182.41170416,0.00027397,7]
[426379672,1782336699000,-1789.96293736,0.00027283,2]
[426379640,1782336699000,-27859.01517237,0.00027111,2]
[426379682,1782336699000,-820.36555674,0.0002739,2]
[426379646,1782336699000,-1001.2173237,0.00027186,2]
[426379645,1782336699000,-801.79187789,0.00027186,2]
[426379659,1782336699000,-788.45085854,0.00027278,2]
[426379648,1782336699000,-869.15132317,0.00027186,2]
[426379649,1782336699000,-804.16786971,0.00027186,2]
[426379650,1782336699000,-831.03524063,0.00027186,2]
[426379652,1782336699000,-844.36201066,0.00027186,2]
[426379653,1782336699000,-767.24531514,0.00027278,2]
[426379655,1782336699000,-989.84093643,0.00027278,2]
[426379654,1782336699000,-870.64467259,0.00027278,2]
[426379658,1782336699000,-805.47984777,0.00027278,2]
[426379651,1782336699000,-907.74666195,0.00027186,2]
[426379669,1782336699000,-818.71336242,0.00027283,2]
[426379657,1782336699000,-879.40120057,0.00027278,2]
[426379660,1782336699000,-805.79139359,0.00027278,2]
[426379661,1782336699000,-990.02442437,0.00027278,2]
[426379662,1782336699000,-826.59131055,0.00027278,2]
[426379666,1782336699000,-1930.45423302,0.00027278,2]
[426379664,1782336699000,-883.32404365,0.00027278,2]
[426379663,1782336699000,-863.46930744,0.00027278,2]
[426379668,1782336699000,-845.35678248,0.00027278,2]
[426379667,1782336699000,-1781.86849389,0.00027278,2]
[426379656,1782336699000,-1694.24977113,0.00027278,2]
[426379670,1782336699000,-924.34459838,0.00027283,2]
[426379665,1782336699000,-909.40947848,0.00027278,2]
[426379761,1782336700000,-998.17935759,0.00027961,2]
[426379739,1782336700000,-188594.64629759,0.000275,2]
[426379733,1782336700000,-760.68,0.000274,7]
[426379742,1782336700000,-2850.0,0.000275,7]
[426379736,1782336700000,-151.42675971,0.00027423,14]
[426379738,1782336700000,-100685.4214135,0.000275,2]
[426379743,1782336700000,-2993.6553,0.00027501,2]
[426379734,1782336700000,-151.42675971,0.00027405,13]
[426379737,1782336700000,-151.42675971,0.00027458,15]
[426379735,1782336700000,-2000.0,0.00027414,7]
[426379740,1782336700000,-205.40029231,0.000275,2]
[426379741,1782336700000,-500.0,0.000275,7]
[426379755,1782336700000,-1554.82,0.00027819,2]
[426379758,1782336700000,-1073.30839076,0.00027892,2]
[426379744,1782336700000,-151.42675971,0.00027515,17]
[426379747,1782336700000,-1426.45,0.000276,7]
[426379746,1782336700000,-500.0,0.0002757,14]
[426379748,1782336700000,-151.42675971,0.00027601,18]
[426379754,1782336700000,-1426.45,0.000278,7]
[426379751,1782336700000,-640.7529458,0.00027733,2]
[426379752,1782336700000,-27859.01517237,0.00027778,2]
[426379750,1782336700000,-151.42675971,0.00027721,19]
[426379749,1782336700000,-1554.82,0.00027608,2]
[426379753,1782336700000,-1983.43,0.000278,7]
[426379756,1782336700000,-151.42675971,0.00027881,21]
[426379760,1782336700000,-1124.01101231,0.00027908,2]
[426379732,1782336700000,-1426.45,0.000274,7]
[426379745,1782336700000,-27859.01517237,0.00027556,2]
[426379728,1782336700000,-1059.0,0.000274,2]
[426379701,1782336700000,-1025.94,0.00027397,2]
[426379724,1782336700000,-1000.0,0.000274,2]
[426379706,1782336700000,-169.81276811,0.00027397,2]
[426379700,1782336700000,-1180.28,0.00027397,2]
[426379702,1782336700000,-530.54,0.00027397,2]
[426379705,1782336700000,-320.53809147,0.00027397,2]
[426379703,1782336700000,-3096.06,0.00027397,2]
[426379704,1782336700000,-16091.88,0.00027397,10]
[426379711,1782336700000,-399.27174304,0.00027397,2]
[426379708,1782336700000,-395.10562993,0.00027397,2]
[426379716,1782336700000,-679.25107243,0.00027397,2]
[426379710,1782336700000,-199.63587152,0.00027397,2]
[426379712,1782336700000,-598.90761456,0.00027397,2]
[426379707,1782336700000,-197.55281496,0.00027397,2]
[426379714,1782336700000,-339.62553621,0.00027397,2]
[426379727,1782336700000,-1036.58,0.000274,2]
[426379713,1782336700000,-798.54348607,0.00027397,2]
[426379715,1782336700000,-509.43830432,0.00027397,2]
[426379717,1782336700000,-151.42675971,0.00027398,11]
[426379718,1782336700000,-3304.38,0.000274,7]
[426379719,1782336700000,-1983.43,0.000274,7]
[426379731,1782336700000,-1000.0,0.000274,2]
[426379721,1782336700000,-1000.0,0.000274,2]
[426379720,1782336700000,-1000.0,0.000274,2]
[426379722,1782336700000,-1000.0,0.000274,2]
[426379723,1782336700000,-1000.0,0.000274,2]
[426379725,1782336700000,-1000.0,0.000274,2]
[426379729,1782336700000,-1000.0,0.000274,2]
[426379730,1782336700000,-1372.67,0.000274,2]
[426379726,1782336700000,-1000.0,0.000274,2]
[426379709,1782336700000,-592.65844489,0.00027397,2]
[426379763,1782336700000,-212.0,0.00027984,5]
[426379783,1782336700000,-962.15025346,0.00028031,2]
[426379764,1782336700000,-150.0,0.00027999,2]
[426379794,1782336700000,-1055.28144069,0.00028126,2]
[426379798,1782336700000,-1188.02930924,0.00028126,2]
[426379796,1782336700000,-966.57581732,0.00028126,2]
[426379797,1782336700000,-1030.84982404,0.00028126,2]
[426379799,1782336700000,-966.94967231,0.00028126,2]
[426379803,1782336700000,-2316.54507962,0.00028126,2]
[426379802,1782336700000,-1091.29137418,0.00028126,2]
[426379800,1782336700000,-991.90957265,0.00028126,2]
[426379801,1782336700000,-1036.16316893,0.00028126,2]
[426379804,1782336700000,-2138.24219266,0.00028126,2]
[426379806,1782336700000,-982.45603491,0.00028131,2]
[426379807,1782336700000,-2147.95552483,0.00028131,2]
[426379809,1782336700000,-1299.9865067,0.00028131,2]
[426379810,1782336700000,-1626.59267195,0.00028131,2]
[426379808,1782336700000,-920.69437816,0.00028131,2]
[426379811,1782336700000,-1501.15264539,0.00028131,2]
[426379814,1782336700000,-1983.43,0.000282,7]
[426379818,1782336700000,-1554.82,0.0002824,2]
[426379812,1782336700000,-970.3338026,0.00028131,2]
[426379816,1782336700000,-344.17503136,0.00028222,2]
[426379815,1782336700000,-1426.45,0.000282,7]
[426379817,1782336700000,-803.07507318,0.00028222,7]
[426379820,1782336700000,-5000.0,0.00028261,2]
[426379822,1782336700000,-5000.0,0.00028261,2]
[426379821,1782336700000,-5000.0,0.00028261,2]
[426379819,1782336700000,-5377.09502297,0.00028261,2]
[426379757,1782336700000,-200.0,0.00027887,2]
[426379805,1782336700000,-1014.42813898,0.00028126,2]
[426379795,1782336700000,-946.14103024,0.00028126,2]
[426379813,1782336700000,-1126.48288625,0.00028131,2]
[426379792,1782336700000,-1187.80912372,0.00028125,2]
[426379793,1782336700000,-2033.09972536,0.00028125,2]
[426379767,1782336700000,-3304.38,0.00028,7]
[426379762,1782336700000,-849.06384054,0.00027962,2]
[426379765,1782336700000,-952.42268978,0.00028,15]
[426379768,1782336700000,-11728.8985444,0.00028,8]
[426379759,1782336700000,-278.8,0.000279,2]
[426379769,1782336700000,-7000.0,0.00028,2]
[426379778,1782336700000,-27859.01517237,0.00028,2]
[426379770,1782336700000,-7000.0,0.00028,5]
[426379779,1782336700000,-600.0,0.00028,2]
[426379771,1782336700000,-19356.70967065,0.00028,2]
[426379780,1782336700000,-1426.45,0.00028,7]
[426379772,1782336700000,-250.0,0.00028,7]
[426379777,1782336700000,-144856.48376422,0.00028,2]
[426379766,1782336700000,-800.0,0.00028,2]
[426379773,1782336700000,-123343.47624571,0.00028,2]
[426379788,1782336700000,-691.3757154,0.00028083,2]
[426379774,1782336700000,-160.0,0.00028,2]
[426379789,1782336700000,-151.42675971,0.00028086,22]
[426379782,1782336700000,-1001.23915801,0.00028031,2]
[426379787,1782336700000,-1843.03887734,0.00028082,2]
[426379791,1782336700000,-1044.77360711,0.00028125,2]
[426379790,1782336700000,-990.86222538,0.00028125,2]
[426379785,1782336700000,-997.24228875,0.00028031,2]
[426379784,1782336700000,-940.39281208,0.00028031,2]
[426379781,1782336700000,-152.0,0.00028002,5]
[426379776,1782336700000,-22500.0,0.00028,2]
[426379775,1782336700000,-643.0,0.00028,2]
[426379786,1782336700000,-5365.5,0.00028075,2]
[426379847,1782336701000,-1800.337,0.000287,3]
[426379850,1782336701000,-500.0,0.00028767,2]
[426379844,1782336701000,-376.26191198,0.00028658,2]
[426379846,1782336701000,-1554.82,0.00028662,2]
[426379849,1782336701000,-1800.33,0.000287,2]
[426379852,1782336701000,-415.94316732,0.00028767,2]
[426379851,1782336701000,-219.63850731,0.00028767,2]
[426379848,1782336701000,-1800.337,0.000287,2]
[426379858,1782336701000,-152.0,0.00028896,6]
[426379853,1782336701000,-1197.81522911,0.00028807,2]
[426379855,1782336701000,-150.0,0.00028855,2]
[426379857,1782336701000,-1554.82,0.00028872,2]
[426379860,1782336701000,-18383.79,0.000289,2]
[426379862,1782336701000,-150.0,0.00028936,2]
[426379859,1782336701000,-278.8,0.000289,2]
[426379845,1782336701000,-188.13095599,0.00028658,2]
[426379854,1782336701000,-150.0,0.00028855,2]
[426379856,1782336701000,-186.0,0.00028856,2]
[426379842,1782336701000,-151.42675971,0.00028654,25]
[426379824,1782336701000,-760.68,0.000283,7]
[426379833,1782336701000,-1843.03887734,0.00028425,2]
[426379864,1782336701000,-1277.0,0.00028936,2]
[426379828,1782336701000,-204211.17731046,0.00028363,11]
[426379823,1782336701000,-5000.0,0.00028261,2]
[426379826,1782336701000,-151.42675971,0.00028341,23]
[426379827,1782336701000,-212838.05058411,0.00028363,11]
[426379825,1782336701000,-1000.0,0.00028315,2]
[426379829,1782336701000,-500.0,0.00028397,16]
[426379830,1782336701000,-170.51290129,0.00028397,7]
[426379843,1782336701000,-752.52382395,0.00028658,2]
[426379832,1782336701000,-1426.45,0.000284,7]
[426379841,1782336701000,-200.0,0.00028638,2]
[426379839,1782336701000,-1983.43,0.000286,7]
[426379835,1782336701000,-3304.38,0.000285,7]
[426379837,1782336701000,-73508.04370303,0.000285,2]
[426379834,1782336701000,-800.0,0.000285,2]
[426379836,1782336701000,-1000.0,0.000285,2]
[426379831,1782336701000,-151.23040346,0.00028397,7]
[426379840,1782336701000,-1426.45,0.000286,7]
[426379838,1782336701000,-674.0,0.00028507,2]
[426379863,1782336701000,-1361.0,0.00028936,2]
[426379867,1782336701000,-3648.0,0.00028936,2]
[426379876,1782336701000,-750.0,0.00028986,2]
[426379886,1782336701000,-750.0,0.00028986,2]
[426379891,1782336701000,-750.0,0.00028986,2]
[426379890,1782336701000,-750.0,0.00028986,2]
[426379893,1782336701000,-750.0,0.00028986,2]
[426379894,1782336701000,-750.0,0.00028986,2]
[426379892,1782336701000,-750.0,0.00028986,2]
[426379896,1782336701000,-750.0,0.00028986,2]
[426379895,1782336701000,-750.0,0.00028986,2]
[426379889,1782336701000,-750.0,0.00028986,2]
[426379897,1782336701000,-750.0,0.00028986,2]
[426379900,1782336701000,-750.0,0.00028986,2]
[426379901,1782336701000,-750.0,0.00028986,2]
[426379902,1782336701000,-750.0,0.00028986,2]
[426379903,1782336701000,-750.0,0.00028986,2]
[426379904,1782336701000,-750.0,0.00028986,2]
[426379906,1782336701000,-750.0,0.00028986,2]
[426379861,1782336701000,-4200.0,0.000289,10]
[426379905,1782336701000,-750.0,0.00028986,2]
[426379898,1782336701000,-750.0,0.00028986,2]
[426379884,1782336701000,-750.0,0.00028986,2]
[426379899,1782336701000,-750.0,0.00028986,2]
[426379878,1782336701000,-750.0,0.00028986,2]
[426379866,1782336701000,-1229.0,0.00028936,2]
[426379883,1782336701000,-750.0,0.00028986,2]
[426379865,1782336701000,-383.0,0.00028936,2]
[426379870,1782336701000,-750.0,0.00028986,2]
[426379868,1782336701000,-217.000102,0.00028971,2]
[426379873,1782336701000,-750.0,0.00028986,2]
[426379875,1782336701000,-750.0,0.00028986,2]
[426379874,1782336701000,-750.0,0.00028986,2]
[426379871,1782336701000,-750.0,0.00028986,2]
[426379869,1782336701000,-150.0,0.00028971,2]
[426379877,1782336701000,-750.0,0.00028986,2]
[426379879,1782336701000,-750.0,0.00028986,2]
[426379880,1782336701000,-750.0,0.00028986,2]
[426379882,1782336701000,-750.0,0.00028986,2]
[426379888,1782336701000,-750.0,0.00028986,2]
[426379885,1782336701000,-750.0,0.00028986,2]
[426379887,1782336701000,-750.0,0.00028986,2]
[426379872,1782336701000,-750.0,0.00028986,2]
[426379881,1782336701000,-750.0,0.00028986,2]
[426379945,1782336702000,-500.0,0.00029,2]
[426379943,1782336702000,-500.0,0.00029,2]
[426379946,1782336702000,-500.0,0.00029,2]
[426379940,1782336702000,-500.0,0.00029,2]
[426379941,1782336702000,-500.0,0.00029,2]
[426379939,1782336702000,-500.0,0.00029,2]
[426379932,1782336702000,-500.0,0.00029,2]
[426379934,1782336702000,-500.0,0.00029,2]
[426379950,1782336702000,-500.0,0.00029,2]
[426379933,1782336702000,-500.0,0.00029,2]
[426379944,1782336702000,-500.0,0.00029,2]
[426379961,1782336702000,-500.0,0.00029,2]
[426379956,1782336702000,-500.0,0.00029,2]
[426379942,1782336702000,-500.0,0.00029,2]
[426379948,1782336702000,-500.0,0.00029,2]
[426379947,1782336702000,-500.0,0.00029,2]
[426379952,1782336702000,-500.0,0.00029,2]
[426379951,1782336702000,-500.0,0.00029,2]
[426379953,1782336702000,-500.0,0.00029,2]
[426379954,1782336702000,-500.0,0.00029,2]
[426379955,1782336702000,-500.0,0.00029,2]
[426379957,1782336702000,-500.0,0.00029,2]
[426379959,1782336702000,-500.0,0.00029,2]
[426379958,1782336702000,-500.0,0.00029,2]
[426379931,1782336702000,-500.0,0.00029,2]
[426379949,1782336702000,-500.0,0.00029,2]
[426379930,1782336702000,-500.0,0.00029,2]
[426379912,1782336702000,-750.0,0.00028986,2]
[426379938,1782336702000,-500.0,0.00029,2]
[426379960,1782336702000,-500.0,0.00029,2]
[426379907,1782336702000,-750.0,0.00028986,2]
[426379909,1782336702000,-750.0,0.00028986,2]
[426379908,1782336702000,-750.0,0.00028986,2]
[426379915,1782336702000,-641.0,0.00028986,2]
[426379910,1782336702000,-750.0,0.00028986,2]
[426379911,1782336702000,-750.0,0.00028986,2]
[426379913,1782336702000,-750.0,0.00028986,2]
[426379914,1782336702000,-750.0,0.00028986,2]
[426379916,1782336702000,-2000.0,0.00028987,7]
[426379920,1782336702000,-776.31,0.00029,2]
[426379923,1782336702000,-2000.0,0.00029,2]
[426379922,1782336702000,-1983.43,0.00029,7]
[426379924,1782336702000,-4305.0,0.00029,2]
[426379925,1782336702000,-1017.92,0.00029,2]
[426379919,1782336702000,-50294.21863752,0.00029,7]
[426379927,1782336702000,-500.0,0.00029,2]
[426379917,1782336702000,-800.0,0.00029,2]
[426379918,1782336702000,-3304.38,0.00029,7]
[426379926,1782336702000,-500.0,0.00029,2]
[426379921,1782336702000,-1692.68889674,0.00029,2]
[426379929,1782336702000,-500.0,0.00029,2]
[426379937,1782336702000,-500.0,0.00029,2]
[426379936,1782336702000,-505.04764791,0.00029,2]
[426379935,1782336702000,-500.0,0.00029,2]
[426379928,1782336702000,-500.0,0.00029,2]
[426379962,1782336702000,-500.0,0.00029,2]
[426379999,1782336702000,-450.03851899,0.00029,2]
[426379969,1782336702000,-500.0,0.00029,2]
[426379990,1782336702000,-5012.5,0.00029,2]
[426379996,1782336702000,-1003.85516835,0.00029,2]
[426380006,1782336702000,-330.64,0.00029,2]
[426379995,1782336702000,-32540.0,0.00029,2]
[426379997,1782336702000,-1294.18336506,0.00029,2]
[426379998,1782336702000,-44896.91646148,0.00029,2]
[426380001,1782336702000,-220.35718499,0.00029,2]
[426380000,1782336702000,-33760.29444354,0.00029,2]
[426380005,1782336702000,-330.65,0.00029,2]
[426380004,1782336702000,-661.3,0.00029,2]
[426380003,1782336702000,-13015.45669886,0.00029,2]
[426380002,1782336702000,-2328.92965181,0.00029,2]
[426380007,1782336702000,-1400.0,0.00029,2]
[426380015,1782336702000,-534.13,0.000291,2]
[426380010,1782336702000,-200.0,0.00029,2]
[426380012,1782336702000,-674.0,0.00029027,2]
[426380011,1782336702000,-226.0,0.00029022,2]
[426380009,1782336702000,-150.0,0.00029,2]
[426380013,1782336702000,-151.42675971,0.00029029,26]
[426380014,1782336702000,-404.65,0.000291,2]
[426380017,1782336702000,-534.13,0.000291,2]
[426380016,1782336702000,-534.13,0.000291,2]
[426380018,1782336702000,-534.13,0.000291,2]
[426380019,1782336702000,-534.13,0.000291,2]
[426379968,1782336702000,-500.0,0.00029,2]
[426379986,1782336702000,-200.0,0.00029,2]
[426379991,1782336702000,-5308.45326725,0.00029,2]
[426380008,1782336702000,-528.89177627,0.00029,2]
[426379994,1782336702000,-42587.93845414,0.00029,2]
[426379973,1782336702000,-500.0,0.00029,2]
[426379993,1782336702000,-15125.52488717,0.00029,2]
[426379963,1782336702000,-500.0,0.00029,2]
[426379966,1782336702000,-500.0,0.00029,2]